Cogmind - Beta 10.2 *** ADVENTURER MODE // 2021.11.13 @ 23:07:44 Player: Jezoensis Result: Self-destructed Performance ------------- Evolutions (5) 2500 Regions Visited (16) 3200 Robots Destroyed (136) 680 Value Destroyed (5354) 5354 Prototype IDs (29) 580 Alien Tech Used (0) 0 Bonus (3377) 3377 TOTAL SCORE: 15691 Bonus ------- High Alert Combat Kills 374 Follower Combat Kills 267 Entered Garrisons 800 Used RIF Installer 2000 Aligned with FarCom 300 Friendly Fire -364 Cogmind --------- Core Integrity 1000/1000 Matter 120/300 Energy 290/290 System Corruption 0% Temperature Cool (0) Movement Walking (122) Location -5/Factory Parts ------- > --- POWER (1) -------- Improved Deuterium Engine > --- PROPULSION (5) --- Carbon-fiber Leg Carbon-fiber Leg Carbon-fiber Leg Improved Titanium Leg > --- UTILITY (9) ------ Large Storage Unit Large Storage Unit Enhanced Optical Array Advanced Terrain Scanner Advanced Terrain Scan Processor Hardened Light Armor Plating Relay Coupler [NC] (45) Relay Coupler [Grunt] (37) Relay Coupler [Sentry] (26) > --- WEAPON (2) ------- Enhanced Autogun Remote Datajack > --- INVENTORY (16) --- Improved Deuterium Engine Medium Storage Unit Matter Compressor (0) Advanced Terrain Scanner Advanced Terrain Scanner Transmission Jammer Relay Coupler [Swarmer] (63) Relay Coupler [Swarmer] (64) Relay Coupler [Grunt] (47) Relay Coupler [Grunt] (42) Long-range Tractor Beam Heavy Rocket Launcher Katana Peak State ------------ > --- POWER ------------ Improved Deuterium Engine > --- PROPULSION ------- Carbon-fiber Leg Carbon-fiber Leg Carbon-fiber Leg Improved Titanium Leg > --- UTILITY ---------- Large Storage Unit Large Storage Unit Enhanced Optical Array Advanced Terrain Scanner Advanced Terrain Scan Processor Hardened Light Armor Plating Relay Coupler [NC] Relay Coupler [Grunt] Relay Coupler [Sentry] > --- WEAPON ----------- Enhanced Autogun Remote Datajack > --- INVENTORY -------- Improved Deuterium Engine Medium Storage Unit Matter Compressor Advanced Terrain Scanner Advanced Terrain Scanner Transmission Jammer Relay Coupler [Swarmer] Relay Coupler [Swarmer] Relay Coupler [Grunt] Relay Coupler [Grunt] Long-range Tractor Beam Heavy Rocket Launcher Katana [Rating: 52] Favorites ----------- Power Improved Ion Engine Engine Improved Ion Engine Power Core Light Nuclear Core Propulsion Carbon-fiber Leg Treads Light Treads Leg Carbon-fiber Leg Utility Large Storage Unit Device Advanced Terrain Scanner Storage Large Storage Unit Processor Terrain Scan Processor Hackware Relay Coupler [NC] Protection Hardened Light Armor Plating Weapon Light Assault Rifle Energy Gun Electrolaser Ballistic Gun Light Assault Rifle Launcher Grenade Launcher Special Weapon Remote Datajack Slashing Weapon Katana Build | -11 -10 -10 -9 -9 -9 -8 -8 -8 -8 -7 -7 -7 -7 -6 -6 -5 ------- Run | Scr Mat Min Mat Min Exi Min Mat Gar Mat Fac Gar Fac Gar Fac Gar Fac Slots Evolved 10 | . . . 2 . . . 2 . . 2 . . . 2 . 2 Power . | . . . . . . . . . . . . . . . . . Propulsion 3 | . . . 1 . . . . . . 1 . . . 1 . . Utility 7 | . . . 1 . . . 2 . . 1 . . . 1 . 2 Weapon . | . . . . . . . . . . . . . . . . . Parts Attached 222 | 7 6 . 19 9 . 5 5 30 26 4 10 33 23 19 24 2 Power 16 | 1 . . 1 . . . 2 6 1 . . 3 1 1 . . Engine 11 | 1 . . 1 . . . 1 3 1 . . 2 1 1 . . Core 5 | . . . . . . . 1 3 . . . 1 . . . . Reactor . | . . . . . . . . . . . . . . . . . Propulsion 46 | 2 1 . 4 1 . 3 . 10 5 2 5 2 5 3 3 . Treads 13 | 2 1 . 4 1 . . . 4 1 . . . . . . . Leg 33 | . . . . . . 3 . 6 4 2 5 2 5 3 3 . Wheel . | . . . . . . . . . . . . . . . . . Hover . | . . . . . . . . . . . . . . . . . Flight . | . . . . . . . . . . . . . . . . . Utility 78 | 2 1 . 9 3 . 2 2 7 9 1 4 14 11 7 4 2 Device 35 | 1 . . 4 2 . 1 1 6 2 . 4 5 4 3 1 1 Storage 7 | 1 1 . 1 . . . . . 3 . . 1 . . . . Processor 4 | . . . 1 . . . . . . . . 3 . . . . Hackware 9 | . . . . . . . . . 2 . . 1 2 2 1 1 Protection 23 | . . . 3 1 . 1 1 1 2 1 . 4 5 2 2 . Artifact . | . . . . . . . . . . . . . . . . . Weapon 82 | 2 4 . 5 5 . . 1 7 11 1 1 14 6 8 17 . Energy Gun 10 | 1 1 . 2 1 . . 1 1 . . . 1 . . 2 . Energy Cannon . | . . . . . . . . . . . . . . . . . Ballistic Gun 38 | 1 1 . 2 3 . . . 5 6 . 1 8 4 3 4 . Ballistic Cannon . | . . . . . . . . . . . . . . . . . Launcher 7 | . . . 1 1 . . . 1 . . . . . . 4 . Special Weapon 16 | . 2 . . . . . . . . . . 1 2 4 7 . Impact Weapon . | . . . . . . . . . . . . . . . . . Slashing Weapon 11 | . . . . . . . . . 5 1 . 4 . 1 . . Piercing Weapon . | . . . . . . . . . . . . . . . . . Special Melee Weapon . | . . . . . . . . . . . . . . . . . Unidentified Prototypes 3 | . . . . . . . . . 1 . . 2 . . . . Parts Lost 33 | . . . . 2 . . 2 18 2 . 1 . 1 1 6 . Power 3 | . . . . . . . 1 2 . . . . . . . . Propulsion 15 | . . . . 1 . . . 8 . . . . 1 1 4 . Utility 3 | . . . . . . . . 2 . . 1 . . . . . Weapon 12 | . . . . 1 . . 1 6 2 . . . . . 2 . Highest Loss Streak 9 | . . . . 2 . . 2 9 2 . 1 . 1 1 3 . Average Slot Usage (%) 94 | . 100 100 100 99 100 100 83 76 89 97 93 99 99 97 95 . Engine 8 | . 14 14 11 11 11 11 7 4 5 7 7 5 7 6 6 . Core 1 | . . . . . . . 1 4 3 . . 1 . . . . Treads 12 | . 28 28 33 32 33 13 . 3 4 . . . . . . . Leg 17 | . . . . . . 19 27 21 22 30 30 30 30 30 29 . Device 7 | . 14 14 9 10 11 6 2 5 3 7 4 6 3 5 1 . Storage 12 | . 14 14 11 11 11 11 9 9 14 15 15 15 15 13 13 . Processor 9 | . . . 11 11 11 11 9 9 9 7 7 10 15 13 13 . Hackware 3 | . . . . . . . . . 8 7 7 6 7 13 13 . Protection 2 | . . . 1 . . 4 8 2 2 4 3 5 3 . 4 . Energy Gun 4 | . 13 14 11 11 11 11 9 . . . . . . . . . Ballistic Gun 11 | . 13 14 10 8 11 11 9 17 9 12 13 11 14 7 5 . Naked Turns . | . . . . . . . . . . . . . . . . . Heaviest Build 57 | 13 17 17 36 36 29 33 34 33 46 45 45 51 53 52 57 54 Greatest Support 82 | 40 40 40 66 66 66 66 40 45 47 48 48 57 67 82 82 65 Greatest Overweight (x) 1 | . . . . . . . . 1 1 . . . . 1 1 . Average Overweight (x) . | . . . . . . . . . . . . . . . . . Largest Inventory Capacity 20 | 6 8 8 10 10 10 10 10 10 20 14 14 16 16 16 16 16 Average Capacity 11 | 5 7 8 9 10 10 10 10 10 13 14 14 15 16 16 16 16 Most Carried 16 | 4 8 8 10 10 10 10 10 10 16 13 14 16 16 16 15 14 Average Carried 11 | 2 6 8 9 9 10 9 9 9 11 12 12 14 15 15 14 13 Final Capacity 16 | 6 8 8 10 10 10 10 10 10 14 14 14 16 16 16 16 16 Final Carried 16 | 4 8 8 10 10 10 9 10 8 14 12 13 16 16 15 15 13 Class Distribution -------------------- 38% | Mutant 21% | Scavenger-Skirmisher 16% | Scavenger-Mutant 12% | Bothacker-Mutant 5% | Scavenger-Assassin Dominant Class ---------------- Mutant | -10/Materials Mutant | -10/Mines Mutant | -9/Materials Mutant | -9/Mines Mutant | -9/Exiles Scavenger-Skirmisher | -8/Mines Scavenger-Mutant | -8/Materials Scavenger-Skirmisher | -8/Garrison Scavenger-Mutant | -8/Materials Scavenger-Mutant | -7/Factory Scavenger-Skirmisher | -7/Garrison Scavenger-Skirmisher | -7/Factory Scavenger-Mutant | -7/Garrison Bothacker-Mutant | -6/Factory Bothacker-Mutant | -6/Garrison Bothacker-Mutant | -5/Factory Resources | -11 -10 -10 -9 -9 -9 -8 -8 -8 -8 -7 -7 -7 -7 -6 -6 -5 ----------- Run | Scr Mat Min Mat Min Exi Min Mat Gar Mat Fac Gar Fac Gar Fac Gar Fac Matter Collected 4526 | 210 59 82 216 267 . 30 143 688 307 . 385 855 423 507 354 . Remotely 491 | . . . . . . . . . . . 370 121 . . . . Salvage Created 5216 | 134 82 21 511 252 . 44 194 936 355 . 334 909 485 424 535 . Parts 283 | 10 6 3 38 9 . 2 21 46 23 . 14 59 20 14 18 . Haulers Intercepted 4 | . 1 . . . . . . . 1 . . 2 . . . . Recyclers Shooed 2 | . . . . . . 1 . . . . . 1 . . . . Parts Field Recycled . | . . . . . . . . . . . . . . . . . Retrieved Matter . | . . . . . . . . . . . . . . . . . Parts Self-Destructed . | . . . . . . . . . . . . . . . . . Prevented . | . . . . . . . . . . . . . . . . . Kills | -11 -10 -10 -9 -9 -9 -8 -8 -8 -8 -7 -7 -7 -7 -6 -6 -5 ------- Run | Scr Mat Min Mat Min Exi Min Mat Gar Mat Fac Gar Fac Gar Fac Gar Fac Combat Hostiles Destroyed 122 | . . . 15 18 . 1 11 28 6 . 7 10 9 4 13 . Melee 4 | . . . . . . . . . 4 . . . . . . . Guns 101 | . . . 13 11 . 1 11 28 2 . 7 10 8 3 7 . AOE 16 | . . . 2 7 . . . . . . . . 1 1 5 . Classes Destroyed 16 | 2 2 . 3 3 . 1 1 1 1 . . 2 . . . . Worker 2 | . . . . 1 . . . . . . . 1 . . . . Builder 5 | . 1 . . 1 . . . . . . . 3 . . . . Tunneler 6 | 4 . 1 . . . . . . . . . 1 . . . . Hauler 4 | . 1 . . . . . . . 1 . . 2 . . . . Recycler 4 | 1 . . 1 . . . . . . . . 1 . 1 . . Operator 1 | . . . . . . . . . 1 . . . . . . . Watcher 5 | . . . . . . . . . . . . 4 . 1 . . Swarmer 31 | . . . 5 . . . 8 11 . . . . . . 7 . Grunt 47 | . . . 9 1 . . . 10 3 . 6 4 6 2 6 . Brawler 3 | . . . . . . . . 2 . . . 1 . . . . Duelist 7 | . . . 1 . . . . 4 1 . . . . 1 . . Sentry 12 | . . . . . . . 2 1 1 . . 2 3 1 2 . Demolisher 2 | . . . . 2 . . . . . . . . . . . . Hunter 6 | . . . . . . 1 1 . 1 . 1 2 . . . . Programmer 1 | . . . . . . . . . . . . 1 . . . . Assembled 15 | . . . . 15 . . . . . . . . . . . . Best Kill Streak 8 | 4 1 1 8 6 . 1 5 6 4 . 3 3 2 4 7 . Combat Bots Only 8 | . . . 8 5 . 1 5 6 3 . 3 3 2 3 7 . Max Kills in Single Turn 3 | 1 1 1 2 3 . 1 2 2 1 . 1 2 1 1 2 . Gunslinging 1 | . . . 1 . . . 1 1 . . . . . . . . Exploded 2 | . . . 2 2 . . . . . . . . 1 1 2 . Melee 1 | . . . . . . . . . 1 . . . . . . . Uniques/NPCs Destroyed . | . . . . . . . . . . . . . . . . . Combat | -11 -10 -10 -9 -9 -9 -8 -8 -8 -8 -7 -7 -7 -7 -6 -6 -5 -------- Run | Scr Mat Min Mat Min Exi Min Mat Gar Mat Fac Gar Fac Gar Fac Gar Fac Damage Taken 6803 | . . . 439 540 . 35 384 1939 462 . 388 655 545 405 1011 . Core 1007 | . . . 96 40 . 9 61 382 103 . 25 126 51 57 57 . Absorbed by Shields . | . . . . . . . . . . . . . . . . . Core Remaining (%) 70 | 100 . 100 . . . 63 . . . . . . 71 . 86 . Volleys Fired 409 | 13 13 1 22 29 . 3 30 97 13 . 29 47 37 24 51 . Largest 2 | 2 2 2 2 2 . 2 2 2 2 . 2 2 2 2 2 . Hottest 105 | 70 100 70 105 105 . 87 87 87 40 . 48 53 56 53 105 . Shots Fired 728 | 26 24 2 44 57 . 6 60 176 21 . 57 91 67 37 60 . Gun 681 | 26 22 2 42 48 . 6 60 174 21 . 57 89 64 28 42 . Cannon . | . . . . . . . . . . . . . . . . . Launcher 21 | . . . 2 9 . . . 2 . . . . . . 8 . Special 26 | . 2 . . . . . . . . . . 2 3 9 10 . Kinetic 566 | 13 11 1 20 19 . 3 30 172 21 . 57 89 64 28 38 . Thermal 117 | 13 13 1 22 29 . 3 30 2 . . . . . . 4 . Explosive 21 | . . . 2 9 . . . 2 . . . . . . 8 . Electromagnetic . | . . . . . . . . . . . . . . . . . Robot Hit Streak 34 | 20 9 2 12 21 . 11 34 19 21 . 20 29 18 23 16 . Robot Miss Streak 5 | 1 1 . 1 1 . 2 5 4 1 . 2 1 1 1 1 . Penetration Max 1 | . . . . . . . . . . . . 1 . 1 . . Secondary Targets 17 | . . . 3 3 . . 1 4 1 . 4 1 . . . . Max Gunslinging Chain 1 | . . . 1 1 . . 1 1 1 . 1 1 . . . . Shots Hit Robots 573 | 22 14 1 29 38 . 5 49 134 27 . 48 78 45 33 50 . Core Hits 296 | 9 3 1 26 33 . 4 19 67 12 . 18 40 19 12 33 . Critical Hits 5 | . . . . . . . . 1 1 . . 2 . . 1 . Critical Kills 1 | . . . . . . . . . 1 . . . . . . . Critical Parts Destroyed 4 | . . . . . . . . 1 . . . 2 . . 1 . Melee Attacks 31 | . . . . . . . . . 10 1 . 19 . 1 . . Impact . | . . . . . . . . . . . . . . . . . Slashing 31 | . . . . . . . . . 10 1 . 19 . 1 . . Piercing . | . . . . . . . . . . . . . . . . . Sneak Attacks 1 | . . . . . . . . . 1 . . . . . . . Combat Hostiles . | . . . . . . . . . . . . . . . . . Follow-up Attacks . | . . . . . . . . . . . . . . . . . Damage Inflicted 10634 | 225 156 13 622 999 . 70 808 1980 470 . 717 1572 933 524 1545 . Guns 8556 | 225 153 13 530 663 . 70 808 1690 159 . 717 1396 933 524 675 . Cannons . | . . . . . . . . . . . . . . . . . Explosions 1732 | . . . 92 336 . . . 290 . . . 144 . . 870 . Melee 343 | . . . . . . . . . 311 . . 32 . . . . Ramming 3 | . 3 . . . . . . . . . . . . . . . Kinetic 6934 | 75 54 . 140 178 . 34 442 1671 159 . 717 1396 933 524 611 . Thermal 1622 | 150 99 13 390 485 . 36 366 19 . . . . . . 64 . Explosive 1732 | . . . 92 336 . . . 290 . . . 144 . . 870 . Electromagnetic . | . . . . . . . . . . . . . . . . . Impact . | . . . . . . . . . . . . . . . . . Slashing 343 | . . . . . . . . . 311 . . 32 . . . . Piercing . | . . . . . . . . . . . . . . . . . Highest Corruption 1 | . . . . . . . . . . . . 1 1 . . . Average Corruption 1 | . . . . . . . . . . . . 1 1 . . . Corruption Purged . | . . . . . . . . . . . . . . . . . Effects 4 | . . . . . . . . . . . . 1 3 . . . Message Errors 1 | . . . . . . . . . . . . . 1 . . . Data Loss (minor) 2 | . . . . . . . . . . . . 1 1 . . . Targeting Errors 1 | . . . . . . . . . . . . . 1 . . . Overload Shots . | . . . . . . . . . . . . . . . . . Overflow Damage 38 | . . . . 2 . . . . 10 . . . . . 26 . Projectiles . | . . . . . . . . . . . . . . . . . Explosions 28 | . . . . 2 . . . . . . . . . . 26 . Melee 10 | . . . . . . . . . 10 . . . . . . . Knockbacks . | . . . . . . . . . . . . . . . . . Impact . | . . . . . . . . . . . . . . . . . Kinetic . | . . . . . . . . . . . . . . . . . Secondary . | . . . . . . . . . . . . . . . . . Self-Inflicted Damage 367 | . . . . 18 . . . 59 . . . 234 . . 56 . Shots 9 | . . . . 1 . . . 2 . . . 3 . . 3 . Rammed 1 | . 1 . . . . . . . . . . . . . . . Targets Rammed 1 | . 1 . . . . . . . . . . . . . . . Kicked . | . . . . . . . . . . . . . . . . . Crushed . | . . . . . . . . . . . . . . . . . Highest Temperature 431 | 150 80 30 243 431 . 72 290 56 10 . 50 239 14 16 154 . Average Temperature 67 | 60 21 18 70 112 . 31 113 14 4 . 16 51 5 7 47 . Received Heat Transfer 2323 | . . . 87 40 . . 90 864 135 . 270 129 264 135 309 . Effects 1 | . . . . 1 . . . . . . . . . . . . Energy Bleed 1 | . . . . 1 . . . . . . . . . . . . Siege Activations . | . . . . . . . . . . . . . . . . . Robots Corrupted . | . . . . . . . . . . . . . . . . . Combat Hostiles . | . . . . . . . . . . . . . . . . . Parts Fried . | . . . . . . . . . . . . . . . . . Impact Corruptions . | . . . . . . . . . . . . . . . . . Robots Melted . | . . . . . . . . . . . . . . . . . Combat Hostiles . | . . . . . . . . . . . . . . . . . Parts Melted 5 | . . . 1 . . . . . . . . . . . 4 . Heat Transferred 3443 | 444 296 37 740 888 . 74 777 37 . . . . . . 150 . Parts Sabotaged . | . . . . . . . . . . . . . . . . . Parts Stolen . | . . . . . . . . . . . . . . . . . Parts Stripped . | . . . . . . . . . . . . . . . . . Power Chain Reactions . | . . . . . . . . . . . . . . . . . Missiles Intercepted . | . . . . . . . . . . . . . . . . . Alert | -11 -10 -10 -9 -9 -9 -8 -8 -8 -8 -7 -7 -7 -7 -6 -6 -5 ------- Run | Scr Mat Min Mat Min Exi Min Mat Gar Mat Fac Gar Fac Gar Fac Gar Fac Peak Influence 883 | 25 67 70 414 223 . 30 300 883 568 222 366 452 536 347 641 291 Initial 370 | . 13 9 22 124 . . 9 171 370 221 136 166 186 243 213 291 Average 282 | 10 40 17 188 129 . 26 138 581 468 221 252 289 367 317 472 291 Maximum Alert Level 3 | . . . 2 1 . . 1 3 2 1 1 2 2 1 2 1 Low Security (%) 37 | 100 100 100 63 73 . 100 73 6 . . 33 11 7 . . . Level 1 38 | . . . 33 26 . . 26 17 29 100 66 78 43 100 28 100 Level 2 22 | . . . 3 . . . . 58 70 . . 10 48 . 71 . Level 3 2 | . . . . . . . . 18 . . . . . . . . Level 4 . | . . . . . . . . . . . . . . . . . Level 5 . | . . . . . . . . . . . . . . . . . High Security . | . . . . . . . . . . . . . . . . . Max Security . | . . . . . . . . . . . . . . . . . Squads Dispatched 9 | . 1 . 4 . . . . . 1 . . 3 . . . . Investigation 2 | . 1 . . . . . . . 1 . . . . . . . Extermination 1 | . . . . . . . . . . . . 1 . . . . Reinforcement 6 | . . . 4 . . . . . . . . 2 . . . . Assault . | . . . . . . . . . . . . . . . . . Garrison . | . . . . . . . . . . . . . . . . . Intercept . | . . . . . . . . . . . . . . . . . Construction Impeded . | . . . . . . . . . . . . . . . . . Haulers Reinforced . | . . . . . . . . . . . . . . . . . Stealth | -11 -10 -10 -9 -9 -9 -8 -8 -8 -8 -7 -7 -7 -7 -6 -6 -5 --------- Run | Scr Mat Min Mat Min Exi Min Mat Gar Mat Fac Gar Fac Gar Fac Gar Fac Distress Signals 5 | . 1 . 1 . . . 1 . . . . 1 . 1 . . Communications Jammed . | . . . . . . . . . . . . . . . . . Distress Signals . | . . . . . . . . . . . . . . . . . Times Spotted 176 | . 5 2 27 17 . 1 13 29 8 . 11 17 9 8 29 . Peak Tracking Total 7 | . 3 2 6 4 . 1 5 7 5 . 6 3 3 4 5 . Tactical Retreats 12 | . . . . . . . 1 1 2 . 3 1 . . 4 . Traps | -11 -10 -10 -9 -9 -9 -8 -8 -8 -8 -7 -7 -7 -7 -6 -6 -5 ------- Run | Scr Mat Min Mat Min Exi Min Mat Gar Mat Fac Gar Fac Gar Fac Gar Fac Traps Triggered 5 | . . . . . . . . 1 1 . . 1 . . 2 . Indirectly . | . . . . . . . . . . . . . . . . . Trap Hack Attempts . | . . . . . . . . . . . . . . . . . Triggered . | . . . . . . . . . . . . . . . . . Disarmed . | . . . . . . . . . . . . . . . . . Reprogrammed . | . . . . . . . . . . . . . . . . . Reused . | . . . . . . . . . . . . . . . . . Traps Extracted . | . . . . . . . . . . . . . . . . . Installed . | . . . . . . . . . . . . . . . . . Triggered . | . . . . . . . . . . . . . . . . . Machines | -11 -10 -10 -9 -9 -9 -8 -8 -8 -8 -7 -7 -7 -7 -6 -6 -5 ---------- Run | Scr Mat Min Mat Min Exi Min Mat Gar Mat Fac Gar Fac Gar Fac Gar Fac Machines Disabled 15 | . . . . 1 . . 1 1 1 . . 6 3 . 2 . Max in Single Turn 2 | . . . . 1 . . 1 1 1 . . 2 1 . 1 . Garrison Access 1 | . . . . . . . . . . . . 1 . . . . Garrison Relay 5 | . . . . . . . . 1 . . . . 3 . 1 . Machines Sabotaged . | . . . . . . . . . . . . . . . . . Garrisons Compromised . | . . . . . . . . . . . . . . . . . Overloaded Fab Kills . | . . . . . . . . . . . . . . . . . Fab Network Shutdowns . | . . . . . . . . . . . . . . . . . Hacking | -11 -10 -10 -9 -9 -9 -8 -8 -8 -8 -7 -7 -7 -7 -6 -6 -5 --------- Run | Scr Mat Min Mat Min Exi Min Mat Gar Mat Fac Gar Fac Gar Fac Gar Fac Machines Accessed 26 | . 4 . 5 . 1 . 2 . 2 1 . 8 . 3 . . Terminals 17 | . 3 . 5 . . . 1 . 2 . . 4 . 2 . . Fabricators 1 | . . . . . . . . . . . . 1 . . . . Repair Stations 1 | . . . . . . . . . . . . 1 . . . . Recycling Units 1 | . 1 . . . . . . . . . . . . . . . Scanalyzers . | . . . . . . . . . . . . . . . . . Garrison Access 5 | . . . . . . . 1 . . 1 . 2 . 1 . . Total Hacks 62 | . 11 . 15 . 1 . 4 . 4 1 . 20 . 6 . . Successful 39 | . 8 . 9 . 1 . 3 . 1 1 . 12 . 4 . . Failed 23 | . 3 . 6 . . . 1 . 3 . . 8 . 2 . . Catastrophic . | . . . . . . . . . . . . . . . . . Database Lockouts . | . . . . . . . . . . . . . . . . . Manual 43 | . 10 . 12 . 1 . 2 . 4 . . 10 . 4 . . Terminals 48 | . 10 . 15 . . . 3 . 4 . . 11 . 5 . . Fabricators 2 | . . . . . . . . . . . . 2 . . . . Repair Stations 5 | . . . . . . . . . . . . 5 . . . . Recycling Units 1 | . 1 . . . . . . . . . . . . . . . Scanalyzers . | . . . . . . . . . . . . . . . . . Garrison Access 5 | . . . . . . . 1 . . 1 . 2 . 1 . . Terminal Hacks 17 | . 4 . 7 . 1 . . . 1 . . 3 . 1 . . Part Schematic 1 | . 1 . . . . . . . . . . . . . . . Robot Analysis 3 | . . . 2 . . . . . . . . 1 . . . . Prototype ID Bank 1 | . . . 1 . . . . . . . . . . . . . Branch Access Points 1 | . . . 1 . . . . . . . . . . . . . Machine Index 1 | . . . . . . . . . . . . . . 1 . . Terminal Index 2 | . 1 . 1 . . . . . . . . . . . . . Garrison Index 1 | . . . . . . . . . . . . 1 . . . . Locate Traps 4 | . 2 . 2 . . . . . . . . . . . . . Recall Investigation 1 | . . . . . . . . . 1 . . . . . . . Registered Components 1 | . . . . . . . . . . . . 1 . . . . EX-Prototype ID Bank 1 | . . . . . 1 . . . . . . . . . . . Fabricator Hacks . | . . . . . . . . . . . . . . . . . Repair Station Hacks 4 | . . . . . . . . . . . . 4 . . . . Scan Component 2 | . . . . . . . . . . . . 2 . . . . Repair 2 | . . . . . . . . . . . . 2 . . . . Recycling Unit Hacks . | . . . . . . . . . . . . . . . . . Scanalyzer . | . . . . . . . . . . . . . . . . . Garrison Access Hacks 5 | . . . . . . . 1 . . 1 . 2 . 1 . . Unlock Access 4 | . . . . . . . 1 . . 1 . 1 . 1 . . Seal Access 1 | . . . . . . . . . . . . 1 . . . . Unauthorized Hacks 13 | . 4 . 2 . . . 2 . . . . 3 . 2 . . Terminals 11 | . 3 . 2 . . . 2 . . . . 2 . 2 . . Track 2 | . 1 . . . . . 1 . . . . . . . . . Botnet 8 | . 2 . 2 . . . 1 . . . . 2 . 1 . . Operators 1 | . . . . . . . . . . . . . . 1 . . Fabricators 1 | . . . . . . . . . . . . 1 . . . . Haulers 1 | . . . . . . . . . . . . 1 . . . . Repair Stations . | . . . . . . . . . . . . . . . . . Recycling Units 1 | . 1 . . . . . . . . . . . . . . . Tunnel 1 | . 1 . . . . . . . . . . . . . . . Scanalyzers . | . . . . . . . . . . . . . . . . . Garrison Access . | . . . . . . . . . . . . . . . . . Data Cores Recovered . | . . . . . . . . . . . . . . . . . Used . | . . . . . . . . . . . . . . . . . Hacking Detections 18 | . 3 . 5 . . . 1 . 2 . . 6 . 1 . . Full Trace Events . | . . . . . . . . . . . . . . . . . Feedback Events . | . . . . . . . . . . . . . . . . . Feedback Blocked . | . . . . . . . . . . . . . . . . . Robot Schematics Acquired . | . . . . . . . . . . . . . . . . . Robots Built . | . . . . . . . . . . . . . . . . . Matter . | . . . . . . . . . . . . . . . . . Time . | . . . . . . . . . . . . . . . . . Total Robot Build Rating . | . . . . . . . . . . . . . . . . . Part Schematics Acquired 1 | . 1 . . . . . . . . . . . . . . . Parts Built . | . . . . . . . . . . . . . . . . . Matter . | . . . . . . . . . . . . . . . . . Time . | . . . . . . . . . . . . . . . . . Total Part Build Rating . | . . . . . . . . . . . . . . . . . Parts Repaired 2 | . . . . . . . . . . . . 2 . . . . Time 76 | . . . . . . . . . . . . 76 . . . . Parts Recycled . | . . . . . . . . . . . . . . . . . Recycled Matter . | . . . . . . . . . . . . . . . . . Retrieved Matter . | . . . . . . . . . . . . . . . . . Retrieved Components . | . . . . . . . . . . . . . . . . . Parts Scanalyzed . | . . . . . . . . . . . . . . . . . Part Schematics Acquired . | . . . . . . . . . . . . . . . . . Parts Damaged . | . . . . . . . . . . . . . . . . . Bothacking | -11 -10 -10 -9 -9 -9 -8 -8 -8 -8 -7 -7 -7 -7 -6 -6 -5 ------------ Run | Scr Mat Min Mat Min Exi Min Mat Gar Mat Fac Gar Fac Gar Fac Gar Fac Used RIF Installer 4 | . . . . . . . . 1 . . 1 . 1 . 1 . Coupler Efficiency 1 | . . . . . . . . . . . 1 . . . . . Threat Obfuscator 1 | . . . . . . . . . . . . . 1 . . . Program Shield 1 | . . . . . . . . . . . . . . . 1 . Robots Hacked 19 | . . . . . . . . . . . . 2 3 6 8 . Non-combat 6 | . . . . . . . . . . . . 2 . 4 . . Combat 13 | . . . . . . . . . . . . . 3 2 8 . Robot Hacks Applied 20 | . . . . . . . . . . . . 2 3 6 9 . map_walls 1 | . . . . . . . . . . . . . . 1 . . map_route 4 | . . . . . . . . . . . . 2 . 2 . . reboot_propulsion 1 | . . . . . . . . . . . . . . . 1 . disrupt_area 2 | . . . . . . . . . . . . . 2 . . . spike_heat 3 | . . . . . . . . . . . . . . . 3 . overload_power 3 | . . . . . . . . . . . . . 1 2 . . wipe_record 1 | . . . . . . . . . . . . . . . 1 . overwrite_iff 3 | . . . . . . . . . . . . . . . 3 . streamctrl_high 1 | . . . . . . . . . . . . . . . 1 . formatsys_high 1 | . . . . . . . . . . . . . . 1 . . Relay Couplers Released 19 | . . . . . . . . 3 . . . . 12 . 4 . Machine Destruction 19 | . . . . . . . . 3 . . . . 12 . 4 . Attached 7 | . . . . . . . . . . . . 1 2 2 1 1 Robots Rewired . | . . . . . . . . . . . . . . . . . Allies Hacked . | . . . . . . . . . . . . . . . . . Hacks Repelled . | . . . . . . . . . . . . . . . . . Allies | -11 -10 -10 -9 -9 -9 -8 -8 -8 -8 -7 -7 -7 -7 -6 -6 -5 -------- Run | Scr Mat Min Mat Min Exi Min Mat Gar Mat Fac Gar Fac Gar Fac Gar Fac Total Allies 10 | . . 5 . . . . . . . . . . . 1 4 . Largest Group 5 | . . 5 4 . . . . . . . . . . 1 2 . Highest-Rated Group 82 | . . 82 71 . . . . . . . . . . 10 58 . Highest-Rated Ally 31 | . . 31 31 . . . . . . . . . . 10 29 . Total Orders 3 | . . . . . . . . . . . . . . 2 1 . STAY 2 | . . . . . . . . . . . . . . 1 1 . FOLLOW 1 | . . . . . . . . . . . . . . 1 . . Ally Attacks 59 | . . 12 31 . . . . . . . . . . . 16 . Total Damage 722 | . . 166 308 . . . . . . . . . . . 248 . Kills 11 | . . 2 7 . . . . . . . . . . . 2 . Allies Corrupted . | . . . . . . . . . . . . . . . . . Allies Melted . | . . . . . . . . . . . . . . . . . Intel | -11 -10 -10 -9 -9 -9 -8 -8 -8 -8 -7 -7 -7 -7 -6 -6 -5 ------- Run | Scr Mat Min Mat Min Exi Min Mat Gar Mat Fac Gar Fac Gar Fac Gar Fac Robot Analysis Total 3 | . . . 2 . . . . . . . . 1 . . . . Derelict Logs Recovered 2 | . . 1 . 1 . . . . . . . . . . . . Drone Launches . | . . . . . . . . . . . . . . . . . Drone Recoveries . | . . . . . . . . . . . . . . . . . Exploration | -11 -10 -10 -9 -9 -9 -8 -8 -8 -8 -7 -7 -7 -7 -6 -6 -5 ------------- Run | Scr Mat Min Mat Min Exi Min Mat Gar Mat Fac Gar Fac Gar Fac Gar Fac Turns Passed 6476 | 115 511 365 491 619 367 44 246 841 327 26 243 1022 490 393 372 4 Spaces Moved 3566 | 48 284 223 242 325 230 21 122 417 171 16 125 622 282 246 191 1 Core 11 | 11 . . . . . . . . . . . . . . . . Treads 1350 | 37 284 223 242 325 230 4 . 1 4 . . . . . . . Legs 2205 | . . . . . . 17 122 416 167 16 125 622 282 246 191 1 Wheels . | . . . . . . . . . . . . . . . . . Hover . | . . . . . . . . . . . . . . . . . Flight . | . . . . . . . . . . . . . . . . . Fastest Speed 50 | 50 160 160 160 160 160 120 120 120 120 120 120 120 122 124 122 122 Average Speed 136 | 134 160 160 160 160 160 127 120 125 125 120 120 121 122 124 123 122 Slowest Speed 180 | 160 160 160 160 160 160 160 120 180 160 120 120 122 125 156 156 122 Overloaded Moves . | . . . . . . . . . . . . . . . . . Propulsion Burnouts . | . . . . . . . . . . . . . . . . . Robots Hopped . | . . . . . . . . . . . . . . . . . Cave-ins Triggered . | . . . . . . . . . . . . . . . . . Exploration Rate (%) 37 | 5 60 70 33 74 68 9 19 57 17 1 40 22 54 13 56 . Regions Visited 16 Branch Regions 4 Pre-discovered Areas 1 | . 1 . . . . . . . . . . . . . . . Known Exits Taken 6 | . . . 1 . . 1 1 . . 1 . 1 . 1 . . Unknown Exits Taken 6 | 1 1 1 . 1 1 . . . 1 . . . . . . . Scrap Searched . | . . . . . . . . . . . . . . . . . Spaces Dug 18 | . 2 . . . . . . . 2 1 . 12 . 1 . . Terrain Destroyed 224 | . 2 . 8 82 . . . 10 2 1 . 40 5 1 73 . Melee 16 | . . . . . . . . . 2 1 . 12 . 1 . . Projectile 7 | . 2 . . . . . . . . . . . 5 . . . AOE 201 | . . . 8 82 . . . 10 . . . 28 . . 73 . Terrain Rammed . | . . . . . . . . . . . . . . . . . Walls Destroyed . | . . . . . . . . . . . . . . . . . Machines Disabled . | . . . . . . . . . . . . . . . . . Actions | -11 -10 -10 -9 -9 -9 -8 -8 -8 -8 -7 -7 -7 -7 -6 -6 -5 --------- Run | Scr Mat Min Mat Min Exi Min Mat Gar Mat Fac Gar Fac Gar Fac Gar Fac Total 4448 | 73 314 230 307 365 229 31 163 572 249 20 173 786 358 299 276 3 Wait 56 | . . 7 . . . . . 4 2 . 3 36 2 1 1 . Move 3546 | 47 283 222 241 324 229 20 121 415 170 15 123 621 280 245 189 1 Hop . | . . . . . . . . . . . . . . . . . Pick Up 84 | 6 7 . 10 2 . . 4 12 13 . 2 12 7 4 5 . Fast Attach 51 | 5 . . 2 1 . 2 . 14 9 . 2 9 1 3 3 . Attach 53 | 2 . . 3 2 . 1 5 13 6 2 3 5 5 1 3 2 Detach 16 | . . . 1 . . . 2 2 5 . 2 3 1 . . . Swap 118 | . 6 . 14 6 . 2 . 3 11 2 5 19 17 15 18 . Drop 79 | . 4 . 14 1 . 3 1 12 10 . 4 15 8 5 2 . Fire 409 | 13 13 1 22 29 . 3 30 97 13 . 29 47 37 24 51 . Melee 31 | . . . . . . . . . 10 1 . 19 . 1 . . Ram . | . . . . . . . . . . . . . . . . . Kick . | . . . . . . . . . . . . . . . . . Crush 1 | . 1 . . . . . . . . . . . . . . . Escape Stasis 4 | . . . . . . . . . . . . . . . 4 . Rewire . | . . . . . . . . . . . . . . . . . Trap . | . . . . . . . . . . . . . . . . . Miscellaneous . | . . . . . . . . . . . . . . . . . Route ------- -11/Scrapyard -10/Materials -10/Mines -9/Materials (discovered 5 exits: *Mat x3 / *Min x2) -9/Mines (discovered 2 exits: Mat / *Exi) -9/Exiles (discovered 2 exits: [*Min x2]) -8/Mines -8/Materials -8/Garrison (discovered 3 exits: *Mat x3) -8/Materials -7/Factory -7/Garrison -7/Factory (discovered 4 exits: *Fac x3 / Gar) -7/Garrison (discovered 2 exits: *Fac x2) -6/Factory (discovered 3 exits: [*Fac] / [Low] / Gar) -6/Garrison -5/Factory History --------- Turn | Location | Event 8 | -11/Scrapyard | Discovered new exit (range 15) 116 | -11/Scrapyard | Entered Materials 314 | -10/Materials | Build established: Mutant 344 | -10/Materials | Discovered new exit (range 14) 627 | -10/Materials | Entered Mines 666 | -10/Mines | Assisted by bots powering up and referring to "LRC-V3" 776 | -10/Mines | Learned 4 Materials zone layouts 902 | -10/Mines | Found a hidden stash of uninstalled traps 965 | -10/Mines | Discovered new exit (range 10) 992 | -10/Mines | Entered Materials 992 | -9/Materials | Accompanied by 4 allies 992 | -9/Materials | Evolved 2 slots: Propulsion x1, Utility x1 993 | -9/Materials | Identified exit to Materials 997 | -9/Materials | Led the pair of lost Derelicts to an unsafe place 1260 | -9/Materials | Discovered exit to Materials (range 20) 1320 | -9/Materials | Identified exit to Mines 1392 | -9/Materials | Discovered exit to Materials (range 16) 1400 | -9/Materials | Destroyed 8 combat bots 1483 | -9/Materials | Entered Mines 1484 | -9/Mines | Assembled infested the area 2074 | -9/Mines | A weapon hastily lodged in a ceiling crevice suddenly fell to the ground 2096 | -9/Mines | Deemed a non-threat by the Exiles lab entrance 2096 | -9/Mines | Discovered new exit (range 5) 2102 | -9/Mines | Entered Exiles 2126 | -9/Exiles | Discovered new exit (range 15) 2146 | -9/Exiles | Met 8R-AWN 2171 | -9/Exiles | Met EX-HEX 2213 | -9/Exiles | Met EX-BIN 2230 | -9/Exiles | Aligned with FarCom system 2232 | -9/Exiles | Given EX-Vault access code 2269 | -9/Exiles | Opened EX-Vault 2304 | -9/Exiles | Warned to stay clear of 0b10 Research branches 2390 | -9/Exiles | Met EX-DEC 2456 | -9/Exiles | Discovered new exit (range 10) 2469 | -9/Exiles | Entered Mines 2497 | -8/Mines | Discovered exit to Materials (range 14) 2513 | -8/Mines | Entered Materials 2513 | -8/Materials | Evolved 2 slots: Utility x2 2751 | -8/Materials | Identified exit to Garrison 2759 | -8/Materials | Entered Garrison 2791 | -8/Garrison | Core integrity fell below 50% 2827 | -8/Garrison | Lost 9 parts (1p4n1u3w) 2846 | -8/Garrison | Triggered checkpoint 2956 | -8/Garrison | Garrison Relay disabled 3153 | -8/Garrison | Lost 3 parts (2n1w) 3274 | -8/Garrison | Discovered new exit (range 12) 3320 | -8/Garrison | Triggered checkpoint 3400 | -8/Garrison | Discovered new exit (range 8) 3444 | -8/Garrison | Triggered checkpoint 3487 | -8/Garrison | Build established: Scavenger-Skirmisher 3509 | -8/Garrison | Triggered checkpoint 3527 | -8/Garrison | Core integrity fell below 20% 3566 | -8/Garrison | Discovered new exit (range 15) 3577 | -8/Garrison | Lost 3 parts (1n1u1w) 3593 | -8/Garrison | Installed Relay Interface Framework 3600 | -8/Garrison | Entered Materials 3906 | -8/Materials | Discovered new exit (range 15) 3927 | -8/Materials | Entered Factory 3927 | -7/Factory | Evolved 2 slots: Propulsion x1, Utility x1 3952 | -7/Factory | Identified exit to Garrison 3953 | -7/Factory | Entered Garrison 3959 | -7/Garrison | Expanded RIF knowledge: Coupler Efficiency 4058 | -7/Garrison | Triggered checkpoint 4184 | -7/Garrison | Discovered new exit (range 10) 4196 | -7/Garrison | Entered Factory 4465 | -7/Factory | Repaired Adv. Terrain Scanner? 4570 | -7/Factory | Repaired Adv. Terrain Scanner 4940 | -7/Factory | Discovered new exit (range 57) 4985 | -7/Factory | Discovered new exit (range 102) 4985 | -7/Factory | Discovered new exit (range 147) 5217 | -7/Factory | Identified exit to Garrison 5218 | -7/Factory | Entered Garrison 5242 | -7/Garrison | Triggered checkpoint 5291 | -7/Garrison | Garrison Relay disabled 5349 | -7/Garrison | Triggered checkpoint 5422 | -7/Garrison | Triggered checkpoint 5469 | -7/Garrison | Garrison Relay disabled 5474 | -7/Garrison | Discovered new exit (range 9) 5522 | -7/Garrison | Triggered checkpoint 5607 | -7/Garrison | Triggered checkpoint 5644 | -7/Garrison | Garrison Relay disabled 5679 | -7/Garrison | Discovered new exit (range 14) 5702 | -7/Garrison | Expanded RIF knowledge: Threat Obfuscation 5708 | -7/Garrison | Entered Factory 5708 | -6/Factory | Evolved 2 slots: Propulsion x1, Utility x1 5950 | -6/Factory | Build established: Bothacker-Mutant 5972 | -6/Factory | Discovered new exit (range 17) 5976 | -6/Factory | Discovered new exit (range 105) 6094 | -6/Factory | Identified exit to Garrison 6101 | -6/Factory | Entered Garrison 6170 | -6/Garrison | Triggered checkpoint 6229 | -6/Garrison | Lost 3 parts (2n1w) 6240 | -6/Garrison | Destroyed 7 combat bots 6362 | -6/Garrison | Garrison Relay disabled 6382 | -6/Garrison | Triggered checkpoint 6426 | -6/Garrison | Triggered checkpoint 6445 | -6/Garrison | Discovered new exit (range 12) 6465 | -6/Garrison | Expanded RIF knowledge: Program Shield 6473 | -6/Garrison | Entered Factory 6473 | -5/Factory | Evolved 2 slots: Utility x2 6477 | -5/Factory | Self-destructed Last Messages --------------- 06404_ The unstable cave ceiling collapses. 06404_ VTOL Module crushed. 06407_ Jacked Y-54 Guardian... >>wipe_record Installed hostile record filter. Deleted hostile record. 06408_ The unstable cave ceiling collapses. 06426_ Beams of light sweep through the air. An alarm sounds. 06445_ EXIT=FOUND 06463_ Initiating installation procedure... 06465_ Expanded RIF knowledge: Program Shield. 06470_ Dropped Matter Compressor. 06471_ Extracted 110 matter. 06471_ Acquired Matter Compressor. 06472_ Attempting to access garrison exit controls... RIF authorized. PARAMETERS=UTILITY_2 LOCATION=UNKNOWN GOAL=ESCAPE 06473_ Receiving FarCom transmissions... Map ----- +----------------------------------------------------+ | ?????????????????????????????????????? | | ?????????????????????????????????????? | | ?????????????????????????????????????? | | ?????????????????????????????????????? | | ?????????????????????????????????????? | | ?????????????????????????????????????? | | ?????????????????????????????????????? | | ????????????????????#???????????????#? | | ????????????????????????????#????????? | | ??????????????? ????????????##???????? | | ????????????????????##???????????????? | | ?????????????????????????????????????? | | ??????????????????#???#???#??????????? | | ??????????? ?"???????#??#?????????#??? | | ??????????????? ?????#?????#???#?????? | | ??????????? ???????????????#????#????# | | ???????? ????????????????????????????? | | ???????????????????????#?????#?#?????? | | ????????????????????##????#??????????? | | ??????????????????????????????#??????? | | ??????????????????#??????????????????? | | ?????######+##################???????? | | ????? #???????? | | ???? #???????? | | ???? #???????? | | ???? @ #???##??? | | ???? #???????? | | ???????####### ##########+####???????? | | ?????????????????????????????????????? | | ?????????#???????????????????????????? | | ??????????????????????"?????????????#? | | ?????????????????????????????????????? | | ??????????#???????????????"??????????? | | ????????????????????????????????????#? | | ?????????????????????????????????????? | | ??????????#??????????? ??????????????? | | ???????????????????????????"?????????? | | ????????????????????????????????#????? | | ??????????????????????"??????????????? | | ???????????????????????????? ?????##?? | | ?????????????????#?????+???????#?????? | | ?????????????????????????????????????? | | ??????????????????????#??????????????? | | ?????????????????????????????????????? | | ????????????????????#???????#????????? | | ?????????????????????????????????????? | | ?????????????????????????????????????? | | ?????????????????????????????????????? | | ?????????????????????????????????????? | | ?????????????????????????????????????? | +----------------------------------------------------+ Best States ------------- Heat Dissipation 37 Energy Generation 16 Energy Capacity 290 Matter Stores 300 Matter Capacity 300 Sight Range 22 Terrain Scan Range 20 Terrain Scan Density 210 Armor Coverage 225 Resistance: KI 20 Resistance: TH 20 Resistance: EX 20 Resistance: EM 20 Resistance: I 20 Resistance: S 20 Resistance: P 20 Propulsion Shielding 66 Weapon Shielding 33 Evasion (%) 50 Recoil Reduction 3 Offensive Hacking 20 Defensive Hacking 10 Relay Coupler Types 79 Relay Coupler Value 2 Item Schematics ----------------- Lrg. Storage Unit | -10/Materials | Hacked Robot Schematics ------------------ None Fabricated ------------ Nothing Alien Tech Used ----------------- None Achievements -------------- Assimilation Complete Close Call Error 47 Infiltrator Challenges ------------ None Game ------ Seed MachineImprinterNullifier Manual? 0 Play Time 01:43:20 Cumulative 357.9 hours Start 2021.11.12 @ 22:17:33 End 2021.11.13 @ 23:07:44 Sessions 7 Manual Loads 0 Difficulty Adventurer Special Mode None Game No. 178 Rogue 60 Adventurer 116 Explorer 2 Win Type - Total 31 Types 28/2/0/0/0/0/0/0/1 Lore% 55 Gallery% 81 Achievement% 59 Wizard Run 0 Options --------- ASCII 0 Keyboard 1 Movement Numpad Keybinds 0 Fullscreen 1 Font 36/TerminusFine Map View 76x50 Tactical HUD 1 Map Filters NONE Filters NONE Steam 1 RUN: 70918c7e-c327-4ed7-a0ae-3b299c4172f9